[Event "Germany Countries-chT Youth 2022"]
[Site "Wiesbaden"]
[Date "2022.10.02"]
[Round "3"]
[White "Koll, Linus"]
[Black "Pikalow, Michael"]
[Result "1-0"]
[ECO "B28"]
[WhiteElo "2060"]
[BlackElo "2037"]
[Annotator "TA"]
[PlyCount "140"]
[EventDate "2022.09.28"]
[EventType "team-tourn"]
[EventRounds "7"]
[EventCountry "GER"]
[SourceTitle "playchess.com"]
[Source "ChessBase"]
[SourceQuality "1"]
[TimeControl "40/5400+30:1800+30"]

{[%evp 9,140,54,39,16,46,4,7,3,12,0,0,0,0,0,0,0,0,0,7,-10,-4,-8,0,-41,-55,-103,0,-9,0,-38,-28,-19,-31,-55,-53,-21,-31,-39,0,-44,7,0,0,0,0,0,0,0,8,0,0,0,0,0,0,0,0,0,0,0,0,0,177,181,170,166,185,0,13,0,149,157,242,238,454,436,366,251,430,438,517,352,335,84,77,83,76,84,85,85,658,620,1987,72,70,69,69,69,69,69,69,28,68,67,69,66,66,67,69,69,69,30,69,0,69,64,64,10,84,114,187,187,29972,29952,29980,29981,29981,29982,29985,29986,29988,29988,29992]} 1. e4 {[%emt 0:00:01]} c5 {[%emt 0:00:01]} 2. Nf3 {[%emt 0:00:06]} a6 {[%emt 0:00:08]} 3. c3 {[%emt 0:00:26]} g6 {[%emt 0:00:04]} 4. d4 {[%emt 0:00:12]} cxd4 {[%emt 0:00:02]} 5. cxd4 {[%emt 0:00:16]} d5 {[%emt 0:00:02]} 6. e5 {[%emt 0:02:39] B28: Sicilian: 2 Nf3 a6 (O'Kelly Variation).} Bg4 {[%emt 0:00:07] 6...Nc6 is more advanced technology.} 7. Be2 {[%emt 0:08:49]} Bxf3 {[%emt 0:01:19]} 8. Bxf3 {[%emt 0:03:52] The position is equal.} (8. gxf3 Nc6 $15) 8... e6 {[%emt 0:00:07] [#]} 9. Nd2 $146 {[%emt 0:02:35]} ({Predecessor:} 9. O-O Nc6 10. Be3 Nge7 11. g4 h5 12. h3 hxg4 13. hxg4 g5 14. Qd2 Ng6 15. Nc3 {½-½ (52) Kozak,A (2061)-Jarzebowski,K (1926) Szczyrk 2017}) 9... Qb6 {[%emt 0:07:10]} 10. Nb3 {[%emt 0:12:40]} a5 {[%emt 0:07:00]} 11. a4 {[%emt 0:02:06]} Bb4+ {[%emt 0:03:48]} 12. Kf1 {[%emt 0:00:19]} Nc6 {[%emt 0:01:48]} 13. Be2 {[%emt 0:07:06]} h5 {[%emt 0:09:17]} 14. Qd3 {[%emt 0:13:17]} Nge7 {[%emt 0:15:54]} 15. Qb5 {[%emt 0:00:51]} Qa7 {[%emt 0:05:39]} 16. Bg5 {[%emt 0:11:46]} Nf5 {[%emt 0:01:12]} 17. Bf6 {[%emt 0:00:14]} (17. Rd1 $15 {is superior.}) 17... Rg8 {[%emt 0:00:24]} (17... O-O $17 18. Rd1 Nfxd4 19. Nxd4 Nxd4) 18. Rd1 {[%emt 0:01:30]} Rc8 {[%emt 0:08:23]} 19. h3 {[%emt 0:02:26]} h4 $1 {[%emt 0:04:26]} 20. Bg4 {[%emt 0:02:58]} Be7 $1 {[%emt 0:01:47]} 21. Bxe7 {[%emt 0:13:32]} Kxe7 {[%emt 0:01:01]} 22. Bxf5 {[%emt 0:04:38]} gxf5 {[%emt 0:00:06]} 23. Rg1 {[%emt 0:04:45]} Rg6 {[%emt 0:18:07]} 24. Ke2 {[%emt 0:00:41]} Nb4 {[%emt 0:04:43]} (24... f6 $15 25. exf6+ Kxf6) 25. Qxa5 {[%emt 0:03:02]} (25. Nc5 b6 26. Nd3 Rc4 $17) 25... Qxa5 {[%emt 0:04:06]} 26. Nxa5 {[%emt 0:00:04]} b6 {[%emt 0:01:38]} 27. Nb3 {[%emt 0:01:20]} Ra8 {[%emt 0:01:40]} 28. Ra1 {[%emt 0:00:06]} Rgg8 {[%emt 0:00:07]} 29. a5 {[%emt 0:00:23]} (29. Rgc1 {is interesting.} Kd7 30. Kf3 Nd3 31. Rc2) 29... bxa5 {[%emt 0:00:47]} 30. Rxa5 {[%emt 0:00:40]} Rxa5 {[%emt 0:00:25]} 31. Nxa5 $11 {[%emt 0:00:03][%mdl 4096] Endgame KRN-KRN} Rc8 {[%emt 0:00:03]} 32. Rd1 {[%emt 0:00:37]} f6 {[%emt 0:02:12]} 33. Nb3 {[%emt 0:01:56]} fxe5 {[%emt 0:01:26]} 34. dxe5 {[%emt 0:00:18]} Nc6 $1 {[%emt 0:01:16]} (34... Rc2+ 35. Rd2 $14) 35. Rc1 {[%emt 0:00:56]} Kd8 $2 {[%emt 0:00:01]} (35... Rb8 $1 $11 {and Black is okay.}) 36. Nc5 $18 {[%emt 0:00:41]} Ke7 {[%emt 0:00:31]} 37. Nd3 {[%emt 0:00:29]} Kd7 {[%emt 0:00:58]} 38. Nc5+ $2 {[%emt 0:00:07]} (38. Kf3 $18) 38... Ke7 $11 {[%emt 0:00:02]} 39. Nd3 {[%emt 0:00:04]} (39. f4 $11) 39... Kd7 $1 $16 {[%emt 0:00:04]} 40. Ke3 {[%emt 0:01:24]} Rg8 {[%emt 0:02:02]} (40... d4+ $16 41. Kd2 Rb8) 41. b4 $18 {[%emt 0:01:54][%cal Bb2b4,Bb4b5][%mdl 32]} Rxg2 $2 {[%emt 0:05:28]} (41... Rb8 42. Nc5+ Ke7) 42. b5 {[%emt 0:00:15]} Na5 {[%emt 0:00:14]} 43. Ra1 {[%emt 0:02:55]} Nc4+ {[%emt 0:00:29]} (43... Nb7 {keeps fighting.} 44. Nf4 Rg8) 44. Kd4 {[%emt 0:00:18]} Rh2 {[%emt 0:10:30]} 45. Ra7+ {[%emt 0:02:53]} Kc8 {[%emt 0:00:10]} 46. Nf4 {[%emt 0:12:21]} (46. Ra6 $18 {and White stays clearly on top.}) 46... Rxf2 $16 {[%emt 0:03:50]} 47. Nxe6 {[%emt 0:00:08]} Rd2+ {[%emt 0:01:12]} 48. Kc5 $1 {[%emt 0:01:20]} Nxe5 {[%emt 0:00:53][%cal Of5f4]} 49. Rh7 {[%emt 0:02:49]} Nd7+ $2 {[%emt 0:07:28][%mdl 8192]} (49... Rc2+ $16 50. Kxd5 Ng6) 50. Kd6 $18 {[%emt 0:00:46]} Nf6 {[%emt 0:00:28] [#]} 51. Rxh4 {[%emt 0:02:58]} (51. Rh8+ $1 $18 {is the precise move to win.} Kb7 52. Nc5+ Kb6 53. Rb8+ Ka5 54. Nb3+ Kb4 55. Nxd2) 51... Kb7 $16 {[%emt 0:00:31]} 52. Rh6 {[%emt 0:00:34]} Ne4+ {[%emt 0:00:39]} 53. Ke5 {[%emt 0:00:21]} Rb2 {[%emt 0:01:09]} 54. Nd4 {[%emt 0:00:25]} ({Much weaker is} 54. Kxd5 Rxb5+ 55. Kd4 Kc6 $11) 54... Nc3 {[%emt 0:00:45]} 55. Nxf5 {[%emt 0:00:44] aiming for Nd6+.} (55. b6 {seems wilder.} Na4 56. Rh7+ Kxb6 57. h4) 55... Nxb5 {[%emt 0:00:43]} 56. Kxd5 {[%emt 0:00:19]} Nc3+ {[%emt 0:01:39]} 57. Kd4 {[%emt 0:00:43]} Ne2+ {[%emt 0:00:55]} 58. Ke3 {[%emt 0:00:16] Strongly threatening h4.} Kc7 {[%emt 0:00:34]} 59. h4 {[%emt 0:00:10][%cal Bh3h4,Bh4h5,Bh5h6,Bh6h7][%mdl 32]} Rb5 {[%emt 0:01:22]} 60. Ke4 {[%emt 0:02:19]} ({Much worse is} 60. Kxe2 Rxf5 61. Rh8 Kd6 $11) 60... Rb4+ {[%emt 0:00:46]} 61. Ke3 {[%emt 0:02:26]} Rb5 {[%emt 0:00:01]} 62. Rh7+ {[%emt 0:00:16]} (62. Kxe2 Rxf5 63. Ke3 Kd7 $11) 62... Kd8 {[%emt 0:00:23]} 63. Ke4 {[%emt 0:00:11] White is more active.} ({Don't play} 63. Kxe2 Rxf5 64. h5 Ke8 $11) (63. Rf7 $14 Re5+ 64. Kf2) 63... Rb1 {[%emt 0:01:22]} (63... Nc3+ $11 {keeps the balance.} 64. Kf4 Nd5+ 65. Kg3 Rb3+ 66. Kf2 Rb2+ 67. Kg3 Rb3+ 68. Kf2 Rb2+ 69. Kg3 Rb3+) 64. h5 {[%emt 0:00:25] And now h6 would win.} Ke8 {[%emt 0:00:30] [#]} (64... Nc3+ $16 65. Kd4 Ne2+ 66. Ke5 Rb5+ 67. Kf6 Rb6+ 68. Kf7 Rb7+ 69. Kg8 Rb5) 65. h6 $1 $18 {[%emt 0:00:07] Black must now prevent Re7+.} Kf8 $2 {[%emt 0:00:28]} (65... Rh1 $18 66. Kf3 Rf1+ 67. Kxe2 Rxf5) 66. Ra7 {[%emt 0:01:02] White mates.} Rh1 {[%emt 0:00:35]} 67. h7 {[%emt 0:00:27]} Nc3+ {[%emt 0:00:17]} 68. Ke5 {[%emt 0:00:32]} Re1+ {[%emt 0:00:17]} 69. Kd4 {[%emt 0:01:02][%cal Rh7h8]} Nb5+ {[%emt 0:00:11]} 70. Kc4 {[%emt 0:00:07][%cal Rh7h8]} Nd6+ {[%emt 0:00:14] Weighted Error Value: White=0.38/Black=0.32} 1-0

[Event "Germany Countries-chT Youth 2022"]
[Site "Wiesbaden"]
[Date "2022.10.02"]
[Round "3"]
[White "Haubold, Sebastian Marcel"]
[Black "Hecht, Jonas Christian"]
[Result "1-0"]
[ECO "B49"]
[WhiteElo "2039"]
[BlackElo "1852"]
[Annotator "TA"]
[PlyCount "75"]
[EventDate "2022.09.28"]
[EventType "team-tourn"]
[EventRounds "7"]
[EventCountry "GER"]
[SourceTitle "playchess.com"]
[Source "ChessBase"]
[SourceQuality "1"]
[TimeControl "40/5400+30:1800+30"]

{[%evp 14,75,37,3,1,-6,16,26,38,0,0,0,0,0,0,-44,-20,-8,-26,-58,-52,-53,-55,-64,-57,-89,-89,-147,-126,-145,0,-139,-108,-82,-89,-109,-108,-467,-23,-27,0,0,8,-97,0,0,0,4,21,0,0,0,27,0,0,0,26,5,654,640,916,886,848,829]} 1. e4 {[%emt 0:00:02]} c5 {[%emt 0:00:05]} 2. Nf3 {[%emt 0:00:08]} e6 {[%emt 0:00:04]} 3. d4 {[%emt 0:00:06]} cxd4 {[%emt 0:00:03]} 4. Nxd4 {[%emt 0:00:12]} Nc6 {[%emt 0:00:03]} 5. Nc3 {[%emt 0:00:18]} Qc7 {[%emt 0:00:04]} 6. Be3 {[%emt 0:00:40]} a6 {[%emt 0:00:07]} 7. Be2 {[%emt 0:00:20]} b5 {[%emt 0:00:03]} 8. a3 {[%emt 0:07:16]} Bb7 {[%emt 0:00:14] B48: Sicilian: Taimanov: 5 Nc3 Qc7 6 Be3 a6 without Be2.} 9. f4 {[%emt 0:05:35]} Nf6 {[%emt 0:11:36][%cal Bg8f6,Bf6d7,Bd7c5,Bc5e4][%mdl 32]} 10. Bf3 {[%emt 0:12:42]} d6 {[%emt 0:05:57] Prevents e5. White has an edge.} (10... e5 11. Nde2 Bd6) 11. g4 {[%emt 0:01:29][%cal Bg2g4,Bg4g5][%mdl 32] [#]} (11. f5 $5 {[%cal Rf5e6]}) 11... Na5 $146 {[%emt 0:15:49]} ({Predecessor:} 11... Be7 12. g5 Nd7 13. Nxc6 Bxc6 14. Qe2 O-O 15. O-O Rfe8 16. Bg2 Qb7 17. b4 Nb6 {0-1 (35) Brenjo,S (2492)-Mijailovic,Z (2394) Kragujevac 2000}) 12. g5 {[%emt 0:05:43]} Nc4 {[%emt 0:02:09][%csl LRb2,LRe3]} 13. Bc1 {[%emt 0:08:24]} Nd7 {[%emt 0:05:34]} 14. Nde2 {[%emt 0:12:22]} (14. f5 exf5 15. exf5) 14... Rd8 {[%emt 0:13:04][%cal Od6d5]} (14... O-O-O {with more complications.} 15. b3 d5 16. exd5 Nd6) 15. b3 {[%emt 0:01:36]} Ncb6 {[%emt 0:00:16][%cal Od6d5]} 16. Be3 {[%emt 0:06:15]} Nc5 {[%emt 0:03:25]} 17. O-O {[%emt 0:04:02]} d5 $1 {[%emt 0:02:18][%cal Rd5e4]} 18. e5 {[%emt 0:03:56]} Ne4 {[%emt 0:05:49]} 19. Bxe4 {[%emt 0:01:00]} dxe4 {[%emt 0:00:11]} 20. Qc1 {[%emt 0:03:11]} (20. Qe1 $142) 20... Bc5 {[%emt 0:00:52]} 21. Kf2 {[%emt 0:03:31]} O-O {[%emt 0:03:47]} (21... Be7 $17 {aiming for ...h6.} 22. Rg1 h6 23. gxh6 g6) 22. Rg1 {[%emt 0:03:50]} (22. Bxc5 $1 $11 Qxc5+ 23. Qe3) 22... Bxe3+ {[%emt 0:01:11]} 23. Qxe3 {[%emt 0:00:08]} Nd5 $1 {[%emt 0:00:06]} 24. Nxd5 {[%emt 0:00:16]} Rxd5 {[%emt 0:00:20]} 25. Nd4 $2 {[%emt 0:04:54][%mdl 8192] [#]} (25. Rac1 $17 {is more resistant.}) 25... Rc8 $2 {[%emt 0:04:12]} (25... Rxd4 $1 $19 {[%mdl 512]} 26. Qxd4 Rd8) 26. Rg3 $11 {[%emt 0:03:54]} a5 {[%emt 0:02:59] Hoping for ...Qd8.} (26... Qd8 $5 27. c3 $8 Rdc5 $11) 27. c3 $1 {[%emt 0:02:29]} Qb6 {[%emt 0:05:06]} 28. Ne2 {[%emt 0:03:12] [#]} (28. b4 $11) 28... Qc7 {[%emt 0:02:17]} (28... Qd8 $1 $17 {...Rd3 is the strong threat.} 29. Qxe4 Rd7) 29. Nd4 {[%emt 0:01:12]} Qc5 {[%emt 0:01:53]} 30. b4 $36 {[%emt 0:00:47][%mdl 2048] White has some pressure.} Qa7 {[%emt 0:01:44] Threatens to win with ...axb4.} 31. Re1 {[%emt 0:00:52]} axb4 {[%emt 0:05:22]} 32. axb4 {[%emt 0:00:05]} Qa3 {[%emt 0:01:51]} 33. Rh3 {[%emt 0:01:05]} g6 {[%emt 0:02:20]} 34. Rg3 {[%emt 0:00:44] Active counter play!} Kg7 {[%emt 0:00:24]} 35. h4 {[%emt 0:00:15]} Rxc3 $2 {[%emt 0:02:12][%mdl 8192]} 36. Qxc3 $18 {[%emt 0:00:06] White is clearly winning.} Qxc3 {[%emt 0:00:03]} 37. Nxe6+ $1 {[%emt 0:00:13]} ({Weaker is} 37. Rxc3 Rxd4 38. Rb1 Rd2+ 39. Ke3 Rh2 $16) 37... fxe6 {[%emt 0:00:07]} 38. Rxc3 {[%emt 0:00:04] Never resign too early!  Weighted Error Value: White=0.38/Black=0.64} 1-0

[Event "Germany Countries-chT Youth 2022"]
[Site "Wiesbaden"]
[Date "2022.10.02"]
[Round "3"]
[White "Kempe, Caius Emilian"]
[Black "Campora, Daniel H."]
[Result "1-0"]
[ECO "D20"]
[WhiteElo "2030"]
[BlackElo "2344"]
[Annotator "TA"]
[PlyCount "171"]
[EventDate "2022.09.28"]
[EventType "team-tourn"]
[EventRounds "7"]
[EventCountry "GER"]
[SourceTitle "playchess.com"]
[Source "ChessBase"]
[SourceQuality "1"]
[TimeControl "40/5400+30:1800+30"]

{[%evp 9,170,-9,-11,-19,-11,-8,-15,-25,-31,-22,-10,-26,-19,-29,-15,-26,-23,-23,-30,-43,-14,-14,4,3,29,37,103,105,140,141,168,167,161,143,197,141,397,402,375,403,390,407,400,401,435,416,385,332,341,360,352,306,354,352,303,217,372,371,422,287,337,324,371,390,373,362,542,530,729,675,666,641,895,535,516,441,434,419,460,452,1501,1428,1980,1735,29965,29970,29971,29971,29967,29969,5522,1887,29959,29963,29964,29965,29965,29967,29974,29975,29974,29973,29972,29973,29978,29979,29979,29980,29981,29982,29982,29981,29981,29980,29978,29978,29978,29980,29980,29976,29977,29978,29979,29977,29980,29979,29981,29980,29982,29972,29983,29984,29987,29985,29988,29987,29989,29990,29990,29990,29991,29992,29992,29993,29993,0,29992,29992,29992,29992,29993,29994,29994,29995,29995,29996,29996,29997,29997,29998,29998,29999,29999]} 1. d4 {[%emt 0:00:04]} d5 {[%emt 0:00:05]} 2. c4 {[%emt 0:00:21]} dxc4 {[%emt 0:00:06]} 3. e3 {[%emt 0:00:29]} e5 {[%emt 0:00:09][%cal Be7e5,Be5d4][%mdl 32]} 4. Bxc4 {[%emt 0:00:26]} exd4 {[%emt 0:00:07]} 5. Qb3 {[%emt 0:01:20]} Qe7 {[%emt 0:00:22]} 6. Nf3 {[%emt 0:00:27] D20: Queen's Gambit Accepted: 3 e3 and 3 e4.} Qb4+ $1 {[%emt 0:01:50]} 7. Bd2 {[%emt 0:02:09]} Qxb3 {[%emt 0:00:09]} 8. Bxb3 {[%emt 0:00:01] The position is equal.} dxe3 {[%emt 0:01:28]} 9. Bxe3 {[%emt 0:01:23]} Bb4+ {[%emt 0:13:16]} 10. Nc3 {[%emt 0:00:02]} Nf6 {[%emt 0:05:49]} 11. O-O {[%emt 0:00:28]} O-O {[%emt 0:02:12]} 12. Nb5 {[%emt 0:02:16][%csl LRa7,LRc7]} Na6 {[%emt 0:00:36]} 13. a3 {[%emt 0:07:33] [#]} Be7 $146 {[%emt 0:09:51]} ({Predecessor:} 13... Ba5 14. Nxa7 Bf5 15. Bc4 Ng4 16. Nb5 Nxe3 17. fxe3 Rae8 18. Nbd4 Be4 19. Rf2 Bg6 {0-1 (49) Karasev,V (1788)-Hjorth,J (1913) ICCF email 2019}) 14. Bf4 {[%emt 0:04:07]} Nc5 {[%emt 0:24:45]} 15. Ba2 {[%emt 0:01:42][%cal Bb3a2,Ba2d5,Bd5b7][%mdl 32]} Bf5 {[%emt 0:12:12]} 16. Rfe1 {[%emt 0:08:08]} Nfe4 {[%emt 0:04:31]} 17. Nxc7 {[%emt 0:00:56]} Nd3 {[%emt 0:04:08] Black is on the road to losing.} (17... Rad8 $14) 18. Nxa8 $16 {[%emt 0:01:12] [#] Threatens to win with Nc7.} Rxa8 {[%emt 0:03:26]} 19. Bd5 {[%emt 0:03:54]} Nf6 {[%emt 0:05:26]} 20. Bxb7 {[%emt 0:03:24]} ({Stronger than} 20. Rxe7 Nxd5 21. Re5 Nxe5 22. Bxe5 Bg4 $11) 20... Re8 {[%emt 0:00:05]} 21. Nd4 {[%emt 0:04:25]} Nxe1 {[%emt 0:01:20]} (21... Bd7 $16) 22. Rxe1 {[%emt 0:00:02]} (22. Nxf5 $18 Bc5 23. Ba6) 22... Be4 $2 {[%emt 0:00:54][%mdl 8192]} (22... Bd6 $16 23. Rxe8+ Nxe8) 23. Bxe4 $18 {[%emt 0:01:36]} Bc5 {[%emt 0:00:02] [#]} 24. Bxh7+ $1 {[%emt 0:00:51]} Kxh7 {[%emt 0:00:17][%cal Re8e1]} 25. Rxe8 {[%emt 0:00:05]} Nxe8 {[%emt 0:00:01][%mdl 4096] Endgame KBN-KBN} 26. Nc6 {[%emt 0:01:29]} Kg6 {[%emt 0:01:14]} 27. b4 {[%emt 0:00:04]} Bb6 {[%emt 0:00:05]} 28. a4 {[%emt 0:00:58] Black must now prevent a5.} Kf5 {[%emt 0:01:40]} 29. Bg3 {[%emt 0:00:15]} a6 {[%emt 0:01:14]} 30. Kf1 {[%emt 0:02:55]} Ke6 {[%emt 0:02:18]} 31. Ke2 {[%emt 0:01:52]} Kd5 {[%emt 0:00:21]} 32. Ne5 {[%emt 0:00:39]} f6 $2 {[%emt 0:01:23]} (32... Nd6 33. Kd3 Ne4 34. Nxf7 Bxf2) 33. Nd7 {[%emt 0:00:31]} Ba7 {[%emt 0:00:09]} 34. Kd3 {[%emt 0:00:12] Hoping for b5.} Kc6 {[%emt 0:01:28]} 35. Nf8 {[%emt 0:00:58]} Nd6 {[%emt 0:00:29]} 36. f3 {[%emt 0:01:16]} Nf5 {[%emt 0:02:06]} 37. Be1 {[%emt 0:00:15]} g5 {[%emt 0:01:12]} (37... Ne7 $142 38. Ne6 g6) 38. Bc3 {[%emt 0:02:36]} Nh4 {[%emt 0:00:46]} 39. Bxf6 {[%emt 0:00:07]} Nxg2 {[%emt 0:00:04]} 40. Bxg5 {[%emt 0:00:22]} Ne1+ {[%emt 0:00:17]} 41. Ke2 {[%emt 0:30:05]} Nc2 {[%emt 0:30:15]} 42. b5+ {[%emt 0:02:07]} axb5 {[%emt 0:00:00]} 43. axb5+ {[%emt 0:00:00]} Kxb5 {[%emt 0:00:00]} 44. Kd3 {[%emt 0:00:00]} Nb4+ {[%emt 0:00:00]} (44... Nd4 $142 45. f4 Bc5) 45. Ke4 {[%emt 0:00:00]} Kc6 {[%emt 0:00:00]} 46. h4 {[%emt 0:00:00][%cal Bh2h4,Bh4h5][%mdl 32]} Bc5 {[%emt 0:00:00]} 47. Ne6 {[%emt 0:00:00]} Bd6 {[%emt 0:00:00]} 48. h5 {[%emt 0:00:00]} Kd7 {[%emt 0:00:00]} 49. Kf5 {[%emt 0:00:00]} Nc6 {[%emt 0:00:00]} 50. Ng7 {[%emt 0:00:00]} (50. h6 $142 Ba3 51. h7) 50... Ne5 {[%emt 0:00:00]} 51. f4 {[%emt 0:00:00]} Nf7 {[%emt 0:00:00]} 52. h6 {[%emt 0:00:00]} Nxh6+ {[%emt 0:00:00]} 53. Bxh6 {[%emt 0:00:00]} Bxf4 {[%emt 0:00:00]} 54. Bxf4 {[%emt 0:00:00]} Kc6 {[%emt 0:00:00]} 55. Ke5 {[%emt 0:00:00]} Kc5 {[%emt 0:00:00]} 56. Ne6+ {[%emt 0:00:00]} Kc4 {[%emt 0:00:00]} 57. Be3 {[%emt 0:00:00]} Kd3 {[%emt 0:00:00]} 58. Bd4 {[%emt 0:00:00]} Ke2 {[%emt 0:00:00]} 59. Ke4 {[%emt 0:00:00]} Kf1 {[%emt 0:00:00]} 60. Nf4 {[%emt 0:00:00]} Ke1 {[%emt 0:00:00]} 61. Kd3 {[%emt 0:00:00]} Kf1 {[%emt 0:00:00]} 62. Bc5 {[%emt 0:00:00]} Ke1 {[%emt 0:00:00]} 63. Ke3 {[%emt 0:00:00]} Kf1 {[%emt 0:00:00]} 64. Bb4 {[%emt 0:00:00]} Kg1 {[%emt 0:00:00]} 65. Kf3 {[%emt 0:00:00]} Kh1 {[%emt 0:00:00]} 66. Nh3 {[%emt 0:00:00]} Kh2 {[%emt 0:00:00]} 67. Nf2 {[%emt 0:00:00]} Kg1 {[%emt 0:00:00]} 68. Bd6 {[%emt 0:00:00]} Kf1 {[%emt 0:00:00]} 69. Bh2 {[%emt 0:00:00]} Ke1 {[%emt 0:00:00]} 70. Ne4 {[%emt 0:00:00]} Kf1 {[%emt 0:00:00]} 71. Nd2+ {[%emt 0:00:00]} Ke1 {[%emt 0:00:00]} 72. Ke3 {[%emt 0:00:00]} Kd1 {[%emt 0:00:00]} 73. Kd3 {[%emt 0:00:00]} Ke1 {[%emt 0:00:00]} 74. Bg3+ {[%emt 0:00:00]} Kd1 {[%emt 0:00:00]} 75. Nc4 {[%emt 0:00:00]} Kc1 {[%emt 0:00:00]} 76. Bd6 {[%emt 0:00:00]} Kd1 {[%emt 0:00:00]} 77. Bg3 {[%emt 0:00:00]} Kc1 {[%emt 0:00:00]} 78. Bh4 {[%emt 0:00:00] White mates.} Kd1 {[%emt 0:00:00]} 79. Nb2+ {[%emt 0:00:00]} Kc1 {[%emt 0:00:00]} 80. Kc3 {[%emt 0:00:00]} Kb1 {[%emt 0:00:00]} 81. Kb3 {[%emt 0:00:00]} Kc1 {[%emt 0:00:00]} 82. Bg5+ {[%emt 0:00:00]} Kb1 {[%emt 0:00:04]} 83. Nc4 {[%emt 0:00:00]} Ka1 {[%emt 0:00:05]} 84. Bf4 {[%emt 0:00:00]} Kb1 {[%emt 0:00:06]} 85. Na3+ {[%emt 0:00:00]} Ka1 {[%emt 0:00:04]} 86. Be5# {[%emt 0:00:00] Weighted Error Value: White=0.21 (precise) /Black=0.52} 1-0

[Event "Germany Countries-chT Youth 2022"]
[Site "Wiesbaden"]
[Date "2022.10.02"]
[Round "3"]
[White "Kocharin, Timur"]
[Black "Mader, Fabian"]
[Result "1-0"]
[ECO "B33"]
[WhiteElo "1971"]
[BlackElo "1735"]
[Annotator "TA"]
[PlyCount "67"]
[EventDate "2022.09.28"]
[EventType "team-tourn"]
[EventRounds "7"]
[EventCountry "GER"]
[SourceTitle "playchess.com"]
[Source "ChessBase"]
[SourceQuality "1"]
[TimeControl "40/5400+30:1800+30"]

{[%evp 25,67,46,62,52,63,45,66,64,64,23,28,31,45,43,46,43,43,41,90,48,83,87,140,129,164,171,164,143,239,220,225,210,219,217,220,156,329,325,308,296,227,239,29991,29992]} 1. e4 {[%emt 0:00:25]} c5 {[%emt 0:00:09]} 2. Nf3 {[%emt 0:00:27]} Nc6 {[%emt 0:00:13]} 3. d4 {[%emt 0:00:23]} cxd4 {[%emt 0:00:09]} 4. Nxd4 {[%emt 0:00:07]} Nf6 {[%emt 0:00:08]} 5. Nc3 {[%emt 0:00:10]} e5 {[%emt 0:00:19]} 6. Ndb5 {[%emt 0:00:17]} d6 {[%emt 0:00:07]} 7. Bg5 {[%emt 0:00:21]} a6 {[%emt 0:00:14]} 8. Na3 {[%emt 0:00:12]} b5 {[%emt 0:00:06]} 9. Bxf6 {[%emt 0:00:10]} gxf6 {[%emt 0:00:13]} 10. Nd5 {[%emt 0:00:15]} f5 {[%emt 0:00:34]} 11. g3 {[%emt 0:00:35]} Bg7 {[%emt 0:02:56]} 12. exf5 {[%emt 0:01:43]} Bxf5 {[%emt 0:01:12]} 13. Bg2 {[%emt 0:00:23]} Rc8 {[%emt 0:02:43]} 14. c3 {[%emt 0:01:16] Against b4. B33: Sicilian: Pelikan and Sveshnikov Variations.} O-O {[%emt 0:01:41]} 15. Nc2 {[%emt 0:01:23] Pair of Knights!} Ne7 {[%emt 0:06:26]} 16. Nxe7+ {[%emt 0:02:44] White is slightly better.} Qxe7 {[%emt 0:00:07]} 17. Ne3 {[%emt 0:02:10]} Be6 {[%emt 0:01:00]} 18. Nd5 {[%emt 0:06:07] [#]} Bxd5 $146 {[%emt 0:08:54]} ({Predecessor:} 18... Qa7 19. O-O f5 20. a4 bxa4 21. Rxa4 e4 22. Nf4 Bd7 23. Ra3 Be5 24. Qd2 Bb5 {½-½ (56) Fontaine,R (2449)-McShane,L (2480) Brussels 2000}) 19. Bxd5 {[%emt 0:09:28]} Kh8 {[%emt 0:05:02]} 20. O-O {[%emt 0:04:41]} f5 {[%emt 0:06:17]} 21. Qe2 {[%emt 0:06:38]} f4 {[%emt 0:10:01]} (21... Rb8 $14) 22. f3 {[%emt 0:11:11]} Rf6 {[%emt 0:08:34]} 23. g4 {[%emt 0:05:08]} Rh6 {[%emt 0:05:53] [#]} ({Black should play} 23... Rff8) 24. a4 $1 $16 {[%emt 0:03:16]} Qd7 {[%emt 0:06:40]} 25. axb5 {[%emt 0:01:38]} axb5 {[%emt 0:04:59]} 26. Qf2 {[%emt 0:02:40] Strongly threatening Ra7.} Bf6 {[%emt 0:07:03]} (26... Qc7 $16 27. Ra7 Qc5 28. Qxc5 dxc5) 27. Ra7 $18 {[%emt 0:03:38]} Rc7 {[%emt 0:03:16]} 28. Rxc7 {[%emt 0:00:41]} Qxc7 {[%emt 0:00:06]} 29. Ra1 {[%emt 0:00:29][%cal Bf1a1,Ba1a7,Ba7a8,Ba8g8][%mdl 32]} Bd8 {[%emt 0:01:14]} 30. Ra7 {[%emt 0:03:21]} Qb6 {[%emt 0:08:39] Loses the game.} (30... Qc5 $16 {was worth a try.} 31. Qxc5 dxc5) 31. Ra8 {[%emt 0:01:39] White threatens Qxb6 and mate.} Kg7 {[%emt 0:00:39] [#]} 32. Qxb6 {[%emt 0:01:08]} Bxb6+ {[%emt 0:00:06]} 33. Kg2 {[%emt 0:00:03]} Rf6 $2 {[%emt 0:04:32]} (33... Kf6 $18 34. Rb8 Be3 35. Rxb5 Rg6) 34. Rg8+ {[%emt 0:00:12] Weighted Error Value: White=0.10 (very precise) /Black=0.64} 1-0